bitfinex/quotes_SOLUSD_20240825
["timestamp","ask_amount","ask_price","bid_price","bid_amount"]
[1724603200079,48.32600615,159.64,159.55,0.3338019]
[1724603200281,45.0,159.63,159.55,0.3338019]
[1724603200789,1.56673764,159.62,159.55,0.3338019]
[1724603201164,22.6292,159.64,159.55,0.3338019]
[1724603202166,6.2644,159.63,159.55,0.3338019]
[1724603202576,24.19582883,159.64,159.55,0.3338019]
[1724603202577,6.2653,159.61,159.55,0.3338019]
[1724603202882,1.56691379,159.6,159.55,0.3338019]
[1724603203263,6.2653,159.61,159.55,0.3338019]
[1724603203668,1.5668258,159.6,159.55,0.3338019]
[1724603203883,7.8324258,159.6,159.55,0.3338019]
[1724603205183,1.5669268,159.59,159.55,0.3338019]
[1724603205485,15.6533,159.58,159.55,0.3338019]
[1724603205963,6.2661,159.59,159.55,0.3338019]
[1724603206383,1.56705488,159.58,159.55,0.3338019]
[1724603206557,1.56705193,159.57,159.55,0.3338019]
[1724603206965,6.2661,159.59,159.55,0.3338019]
[1724603207265,6.2653,159.61,159.55,0.3338019]
[1724603209085,6.2659,159.6,159.55,0.3338019]
[1724603209287,7.83291233,159.6,159.55,0.3338019]
[1724603209586,6.2665,159.58,159.55,0.3338019]
[1724603209891,7.83424459,159.57,159.55,0.3338019]
[1724603210066,1.56724459,159.57,159.55,0.3338019]
[1724603210270,1.5670684,159.61,159.55,0.3338019]
[1724603210591,46.5670684,159.61,159.55,0.3338019]
[1724603210771,1.56706958,159.6,159.55,0.3338019]
[1724603210969,6.266,159.59,159.55,0.3338019]
[1724603211272,45.0,159.61,159.55,0.3338019]
[1724603211273,6.2653,159.61,159.55,0.3338019]
[1724603211782,1.56686061,159.6,159.55,0.3338019]
[1724603212108,6.2658,159.6,159.55,0.3338019]
[1724603212565,7.83286727,159.6,159.55,0.3338019]
[1724603212890,25.69723292,159.6,159.55,0.3338019]
[1724603213184,6.2668,159.58,159.55,0.3338019]
[1724603213490,51.266,159.59,159.55,0.3338019]
[1724603213692,6.266,159.59,159.55,0.3338019]
[1724603214495,6.50289062,159.62,159.55,0.3338019]
[1724603214663,39.13826565,159.66,159.55,0.3338019]
[1724603214861,15.0081,159.66,159.56,24.13016565]
[1724603215167,6.49851201,159.67,159.6,24.13016565]
[1724603215381,1.56634991,159.67,159.58,24.13016565]
[1724603215590,24.13016565,159.69,159.56,24.13016565]
[1724603215768,6.2633,159.66,159.55,0.3338019]
[1724603216084,6.2628,159.68,159.56,24.13016565]
[1724603216280,6.2629,159.67,159.56,24.13016565]
[1724603216587,1.56632061,159.66,159.56,24.13016565]
[1724603217163,7.82962061,159.66,159.56,24.13016565]
[1724603217374,6.2641,159.64,159.55,0.3338019]
[1724603217569,1.56670367,159.63,159.55,0.3338019]
[1724603217764,46.56670367,159.63,159.55,0.3338019]
[1724603218372,1.56670367,159.63,159.55,0.3338019]
[1724603218579,6.2644,159.64,159.55,0.3338019]
[1724603218767,6.2644,159.64,159.55,4.29240638]
[1724603219089,6.2645,159.63,159.55,0.3338019]
[1724603219278,1.56670908,159.62,159.55,0.3338019]
[1724603220500,6.264,159.64,159.55,4.29217873]
[1724603220808,7.83058268,159.64,159.55,0.3338019]
[1724603220965,6.264,159.64,159.55,0.3338019]
[1724603221167,6.264,159.64,159.55,4.29217279]
[1724603221999,7.83051537,159.64,159.55,4.29217279]
[1724603223099,6.264,159.64,159.55,4.29217279]
[1724603223270,1.56651464,159.63,159.55,0.3338019]
[1724603223468,7.83091464,159.63,159.55,0.3338019]
[1724603224892,7.83101464,159.63,159.55,0.3338019]
[1724603225795,6.2653,159.61,159.55,0.3338019]
[1724603225968,1.56681737,159.6,159.55,0.3338019]
[1724603226589,1.56681737,159.6,159.56,1.56870639]
[1724603227288,6.50353459,159.62,159.55,0.3338019]
[1724603227474,6.50353459,159.62,159.56,1.56866301]
[1724603227678,6.2648,159.63,159.57,1.56866301]
[1724603227870,6.2648,159.63,159.56,1.56866301]
[1724603228068,6.2649,159.62,159.57,1.56866301]
[1724603228395,6.2649,159.62,159.55,0.3338019]
[1724603228396,7.83220859,159.61,159.56,1.56870147]
[1724603228691,7.83254301,159.6,159.55,0.3338019]
[1724603229075,6.2657,159.6,159.55,0.3338019]
[1724603229492,7.83265978,159.6,159.55,0.3338019]
[1724603229873,6.2662,159.59,159.55,0.3338019]
[1724603230089,7.83342661,159.58,159.55,0.3338019]
[1724603230379,6.2672,159.56,159.55,0.3338019]
[1724603231191,51.2672,159.56,159.55,0.3338019]
[1724603231567,17.64037731,159.58,159.55,0.3338019]
[1724603231768,46.56727721,159.57,159.55,0.3338019]
[1724603232376,16.073,159.58,159.55,0.3338019]
[1724603232977,6.2656,159.6,159.55,0.3338019]
[1724603233670,1.56706193,159.62,159.55,0.3338019]
[1724603233671,6.2652,159.62,159.55,0.3338019]
[1724603233873,45.0,159.61,159.55,0.3338019]
[1724603234102,6.2652,159.62,159.55,0.3338019]
[1724603234278,16.073,159.63,159.55,1.90314203]
[1724603234476,16.073,159.63,159.55,0.3338019]
[1724603234887,1.56654964,159.62,159.55,0.3338019]
[1724603235491,16.073,159.63,159.55,0.3338019]
[1724603235692,1.56669681,159.62,159.55,0.3338019]
[1724603236477,46.56669681,159.62,159.55,0.3338019]
[1724603237591,6.2658,159.6,159.55,0.3338019]
[1724603237802,51.2651,159.62,159.55,0.3338019]
[1724603238020,45.0,159.62,159.55,0.3338019]
[1724603238328,17.63967804,159.63,159.55,0.3338019]
[1724603238520,1.56667804,159.61,159.55,0.3338019]
[1724603238705,1.56676641,159.6,159.55,0.3338019]
[1724603243728,6.2672,159.56,159.55,0.3338019]
[1724603247228,52.83458755,159.56,159.55,0.3338019]
[1724603248813,59.31677183,159.56,159.55,0.3338019]
[1724603249930,75.39027183,159.56,159.55,0.3338019]
[1724603250837,6.48218428,159.56,159.55,0.3338019]
[1724603252211,12.74938428,159.56,159.55,0.3338019]
[1724603253026,6.48218428,159.56,159.55,0.3338019]
[1724603253336,6.2664,159.58,159.55,0.3338019]
[1724603253627,1.5671104,159.57,159.55,0.3338019]
[1724603253828,6.2664,159.58,159.55,0.3338019]
[1724603254345,54.34065331,159.6,159.55,0.3338019]
[1724603254632,6.2666,159.58,159.55,0.3338019]
[1724603254936,46.56725608,159.59,159.55,0.3338019]
[1724603255227,45.0,159.59,159.55,0.3338019]
[1724603255834,6.2668,159.57,159.55,0.3338019]
[1724603256216,51.2664,159.59,159.55,0.3338019]
[1724603256529,6.48278152,159.6,159.55,0.3338019]
[1724603256834,25.6970197,159.63,159.55,0.3338019]
[1724603257015,6.2653,159.61,159.55,0.3338019]
[1724603257218,1.56685383,159.6,159.55,0.3338019]
[1724603257415,6.2653,159.61,159.55,0.3338019]
[1724603257639,6.48839153,159.62,159.55,0.3338019]
[1724603257934,16.0735,159.64,159.55,0.3338019]
[1724603258334,7.83097617,159.63,159.55,0.3338019]
[1724603259215,1.56657617,159.63,159.55,0.3338019]
[1724603260211,7.83107617,159.63,159.55,0.3338019]
[1724603261438,6.2649,159.62,159.55,0.3338019]
[1724603261610,1.56672937,159.61,159.55,0.3338019]
[1724603261807,1.56675885,159.6,159.55,0.3338019]
[1724603262510,6.2645,159.63,159.55,0.3338019]
[1724603262925,1.56662751,159.62,159.55,0.3338019]
[1724603263233,6.2645,159.63,159.55,0.3338019]
[1724603263431,1.56662758,159.62,159.55,0.3338019]
[1724603264438,6.2657,159.6,159.55,0.3338019]
[1724603264632,1.56690552,159.59,159.55,0.3338019]
[1724603264837,30.39496565,159.62,159.55,0.3338019]
[1724603265341,1.5667285,159.61,159.55,0.3338019]
[1724603265715,6.2645,159.63,159.55,0.3338019]
[1724603268052,6.49421484,159.65,159.6,24.13016565]
[1724603268231,15.0399,159.73,159.62,24.13016565]
[1724603268440,21.52816329,159.73,159.62,24.13016565]
[1724603268929,27.78876329,159.73,159.62,24.13016565]
[1724603269137,6.2609,159.72,159.61,21.9175]
[1724603269534,1.56584494,159.71,159.61,21.9175]
[1724603269851,6.2609,159.72,159.61,21.9175]
[1724603270223,1.5659033,159.71,159.61,21.9175]
[1724603270430,1.56590186,159.7,159.61,21.9175]
[1724603270829,1.56590069,159.7,159.61,21.9175]
[1724603271845,51.2614,159.71,159.61,21.9175]
[1724603272451,25.6961626,159.7,159.56,7.97990947]
[1724603272752,24.13016565,159.66,159.55,0.3338019]
[1724603272930,1.56650282,159.65,159.55,0.3338019]
[1724603273130,1.56643339,159.64,159.55,0.3338019]
[1724603273446,52.83053339,159.64,159.55,0.3338019]
[1724603274367,1.56658066,159.63,159.55,0.3338019]
[1724603276151,45.0,159.64,159.55,0.3338019]
[1724603277161,46.56664427,159.64,159.55,0.3338019]
[1724603277736,70.69680992,159.64,159.55,0.3338019]
[1724603277929,30.39506565,159.62,159.55,0.3338019]
[1724603278233,1.56683122,159.61,159.55,0.3338019]
[1724603278449,1.56682136,159.6,159.55,0.3338019]
[1724603280638,6.49836918,159.61,159.55,0.3338019]
[1724603280947,30.39506565,159.62,159.55,0.3338019]
[1724603281663,12.76540448,159.63,159.55,0.3338019]
[1724603281844,1.56664185,159.62,159.55,0.3338019]
[1724603282044,12.76540448,159.63,159.55,0.3338019]
[1724603282250,6.2657,159.6,159.55,0.3338019]
[1724603282564,1.56691205,159.59,159.55,0.3338019]
[1724603283233,52.83291205,159.59,159.55,0.3338019]
[1724603283433,6.266,159.59,159.55,0.3338019]
[1724603283959,6.2657,159.6,159.55,0.3338019]
[1724603287262,1.56697542,159.59,159.55,0.3338019]
[1724603287649,6.2657,159.6,159.55,0.3338019]
[1724603287961,24.13016565,159.6,159.55,0.3338019]
[1724603288165,6.2667,159.58,159.55,0.3338019]
[1724603288340,1.5671012,159.57,159.55,0.3338019]
[1724603288541,45.0,159.59,159.55,0.3338019]
[1724603288862,24.13016565,159.6,159.55,0.3338019]
[1724603289041,15.2013,159.61,159.55,0.3338019]
[1724603289253,12.76570448,159.63,159.55,0.3338019]
[1724603289444,6.265,159.62,159.55,0.3338019]
[1724603291052,7.83175756,159.62,159.55,0.3338019]
[1724603291653,6.265,159.62,159.55,0.3338019]
[1724603293558,1.56675855,159.61,159.55,0.3338019]
[1724603293756,1.56675811,159.6,159.55,0.3338019]
[1724603294470,6.265,159.62,159.55,0.3338019]
[1724603294776,1.56675648,159.61,159.55,0.3338019]
[1724603294950,1.56676017,159.6,159.55,0.3338019]
[1724603295266,70.69692582,159.6,159.55,0.3338019]
[1724603295565,24.13016565,159.58,159.55,0.3338019]
[1724603295777,46.56735483,159.57,159.55,0.3338019]
[1724603296067,6.2672,159.56,159.55,0.3338019]
[1724603297162,51.2669,159.57,159.55,0.3338019]
[1724603297477,1.56732363,159.57,159.55,0.3338019]
[1724603297975,46.56732363,159.57,159.55,0.3338019]
[1724603300372,52.83412363,159.57,159.55,0.3338019]
[1724603301797,51.2668,159.57,159.55,0.3338019]
[1724603302072,52.83407423,159.57,159.55,0.3338019]
[1724603303177,6.2672,159.56,159.55,0.3338019]
[1724603303471,51.2672,159.56,159.55,0.3338019]
[1724603305776,57.74446541,159.56,159.55,0.3338019]
[1724603310782,6.47726541,159.56,159.55,0.3338019]
[1724603311166,6.2667,159.58,159.55,0.3338019]
[1724603311987,12.74215064,159.59,159.55,0.3338019]
[1724603315664,1.56691484,159.58,159.55,0.3338019]
[1724603315967,1.56711429,159.57,159.55,0.3338019]
[1724603318156,7.83411429,159.57,159.55,0.3338019]
[1724603318352,6.2672,159.56,159.55,0.3338019]
[1724603318759,6.47605064,159.59,159.55,0.3338019]
[1724603318990,6.2657,159.6,159.55,0.3338019]
[1724603319162,1.56693479,159.59,159.55,0.3338019]
[1724603319669,12.7356233,159.6,159.55,0.3338019]
[1724603320892,6.4699233,159.6,159.55,0.3338019]
[1724603322081,8.03660547,159.6,159.55,0.3338019]
[1724603322788,14.30250547,159.6,159.55,0.3338019]
[1724603323165,45.0,159.59,159.55,0.3338019]
[1724603323486,1.56707989,159.58,159.55,0.3338019]
[1724603323695,1.56707936,159.57,159.55,0.3338019]
[1724603323863,1.56684175,159.57,159.55,0.3338019]
[1724603324990,1.56708213,159.59,159.55,0.3338019]
[1724603325188,46.56708213,159.59,159.55,0.3338019]
[1724603325492,52.83328213,159.59,159.55,0.3338019]
[1724603328078,51.2662,159.59,159.55,0.3338019]
[1724603329393,22.4029468,159.6,159.55,0.3338019]
[1724603329891,6.4699233,159.6,159.55,0.3338019]
[1724603330083,15.9314235,159.64,159.56,1.56884564]
[1724603330284,15.9314235,159.64,159.55,16.5996254]
[1724603330285,23.96661678,159.64,159.57,1.56884564]
[1724603332771,26.1698235,159.76,159.66,9.6673235]
[1724603332969,6.46456149,159.74,159.66,9.6673235]
[1724603333596,6.46456149,159.74,159.67,1.56759423]
[1724603333774,16.5025,159.8,159.68,27.51751773]
[1724603333985,26.1698235,159.8,159.7,9.6673235]
[1724603334170,6.2586,159.78,159.7,1.56759423]
[1724603334368,6.2586,159.78,159.69,9.6673235]
[1724603334570,6.46294186,159.79,159.69,9.6673235]
[1724603334793,6.46294186,159.79,159.71,9.6673235]
[1724603335406,6.2574,159.82,159.74,6.5985]
[1724603335580,12.7181987,159.82,159.74,6.5985]
[1724603335896,6.4607987,159.82,159.74,6.5985]
[1724603336893,1.56472781,159.81,159.74,6.5985]
[1724603337887,6.4607987,159.82,159.75,16.2826]
[1724603338095,6.2558,159.85,159.76,24.09349444]
[1724603338391,12.72338821,159.85,159.76,24.09349444]
[1724603338797,6.46758821,159.85,159.76,24.09349444]
[1724603341976,12.72348821,159.85,159.76,24.09349444]
[1724603342177,12.72348821,159.85,159.75,16.2826]
[1724603342377,7.82072961,159.84,159.75,16.2826]
[1724603342671,6.2563,159.84,159.75,16.2826]
[1724603342876,24.09349444,159.84,159.75,16.2826]
[1724603343178,24.09349444,159.84,159.74,6.5985]
[1724603343179,24.09349444,159.82,159.74,6.5985]
[1724603343376,46.56492012,159.81,159.74,6.5985]
[1724603343885,6.2586,159.78,159.74,6.5985]
[1724603344088,6.2581,159.8,159.74,6.5985]
[1724603344282,1.56485954,159.79,159.74,6.5985]
[1724603345503,1.56485954,159.79,159.71,16.3905]
[1724603345708,6.259,159.77,159.71,16.3905]
[1724603346076,1.56519755,159.76,159.71,16.3905]
[1724603348395,57.72420002,159.79,159.71,16.3905]
[1724603348610,12.72420002,159.79,159.71,16.3905]
[1724603348789,51.2587,159.78,159.71,16.3905]
[1724603348984,1.56516664,159.77,159.71,16.3905]
[1724603349293,51.2587,159.78,159.71,16.3905]
[1724603350412,7.82416462,159.77,159.71,16.3905]
[1724603350703,1.5652266,159.76,159.71,16.3905]
[1724603351110,7.8246266,159.76,159.71,16.3905]
[1724603352098,6.259,159.77,159.71,16.3905]
[1724603353692,45.0,159.78,159.71,16.3905]
[1724603354697,6.46570002,159.79,159.71,16.3905]
[1724603355501,14.28890562,159.79,159.71,16.3905]
[1724603355916,6.2586,159.78,159.71,16.3905]
[1724603357506,30.35209444,159.78,159.71,16.3905]
[1724603357822,6.2597,159.75,159.7,6.6537]
[1724603358110,1.56535231,159.74,159.7,6.6537]
[1724603358903,6.2597,159.75,159.7,6.6537]
[1724603359703,1.56535019,159.74,159.7,6.6537]
[1724603360400,6.2597,159.75,159.7,6.6537]
[1724603360700,70.65884576,159.74,159.67,15.0272]
[1724603360904,1.56557696,159.73,159.67,15.0272]
[1724603362521,7.82607696,159.73,159.67,15.0272]
[1724603364918,6.261,159.72,159.67,15.0272]
[1724603365101,1.56563579,159.71,159.67,15.0272]
[1724603365824,6.2605,159.73,159.67,15.0272]
[1724603366126,9.65165312,159.72,159.67,15.0272]
[1724603368417,16.10911429,159.72,159.67,15.0272]
[1724603368725,17.67471387,159.72,159.67,15.0272]
[1724603369427,6.45746117,159.72,159.67,15.0272]
[1724603369600,9.65165312,159.73,159.67,15.0272]
[1724603371843,6.45723722,159.75,159.67,24.67885312]
[1724603372201,15.91095312,159.77,159.67,24.67885312]
[1724603372623,6.45614715,159.76,159.67,24.67885312]
[1724603372830,6.45614715,159.76,159.69,9.65165312]
[1724603373028,9.65165312,159.81,159.71,9.65165312]
[1724603373238,16.10151952,159.81,159.71,9.65165312]
[1724603373531,15.91005312,159.79,159.69,9.65165312]
[1724603373734,15.91005312,159.79,159.69,11.21875748]
[1724603373935,9.65165312,159.73,159.67,15.0272]
[1724603374146,6.2606,159.73,159.67,15.0272]
[1724603374437,9.65165312,159.75,159.67,15.0272]
[1724603374631,15.91135312,159.75,159.67,15.0272]
[1724603374838,9.65165312,159.73,159.67,15.0272]
[1724603375014,9.65165312,159.71,159.67,15.0272]
[1724603375217,9.65165312,159.69,159.62,21.4369]
[1724603375543,6.2625,159.69,159.62,21.4369]
[1724603375832,7.76333843,159.75,159.63,1.56788293]
[1724603376044,6.2613,159.71,159.63,1.56788293]
[1724603376330,52.82763707,159.7,159.63,1.56786803]
[1724603376542,45.0,159.7,159.63,1.56786803]
[1724603376724,51.2614,159.71,159.63,1.56786803]
[1724603377334,51.2614,159.71,159.64,1.56786803]
[1724603377522,51.2614,159.71,159.63,1.56786803]
[1724603377835,51.2614,159.71,159.64,1.56786803]
[1724603378039,51.2614,159.71,159.63,1.56786803]
[1724603378213,51.2614,159.71,159.64,1.56786803]
[1724603378409,51.2614,159.71,159.63,1.56777499]
[1724603378613,51.2614,159.71,159.64,1.56777499]
[1724603378814,51.2614,159.71,159.63,1.56777499]
[1724603379030,51.2614,159.71,159.64,1.56777499]
[1724603379229,51.2614,159.71,159.63,1.56777499]
[1724603379425,51.2614,159.71,159.62,21.4369]
[1724603379426,51.2614,159.71,159.64,1.56777499]
[1724603379636,51.2614,159.71,159.63,1.56777499]
[1724603379949,51.2614,159.71,159.64,1.56777499]
[1724603380133,51.2614,159.71,159.63,1.56777499]
[1724603380614,1.56585028,159.7,159.63,1.56777499]
[1724603381541,25.70033101,159.7,159.63,1.56777499]
[1724603381723,24.13448073,159.68,159.62,21.4369]
[1724603381925,1.56613689,159.67,159.62,21.4369]
[1724603383041,51.2621,159.69,159.62,21.4369]
[1724603383218,1.56604417,159.68,159.62,21.4369]
[1724603383534,1.56606139,159.67,159.62,21.4369]
[1724603385241,6.2625,159.68,159.62,21.4369]
[1724603386244,30.39648073,159.7,159.62,21.4369]
[1724603386460,6.2613,159.71,159.62,21.4369]
[1724603386751,6.53507327,159.71,159.63,1.56777186]
[1724603386927,6.53507327,159.71,159.63,1.56782383]
[1724603387437,6.2605,159.74,159.64,1.56782383]
[1724603387840,7.82597751,159.74,159.64,1.56782383]
[1724603388245,7.82597751,159.74,159.65,1.56782383]
[1724603388443,7.82597751,159.74,159.64,2.97945457]
[1724603388746,1.56548635,159.73,159.65,1.56782383]
[1724603389156,7.82598635,159.73,159.65,1.56782383]
[1724603389451,7.82598635,159.73,159.64,1.56782383]
[1724603389452,6.2611,159.72,159.64,1.56782383]
[1724603389654,1.56569719,159.71,159.63,5.52395197]
[1724603389820,1.56569719,159.7,159.64,1.56782383]
[1724603390321,1.56569719,159.7,159.63,3.95612814]
[1724603390322,1.56569719,159.7,159.65,1.56782383]
[1724603390536,1.56569719,159.7,159.63,3.95617906]
[1724603390940,6.2611,159.72,159.64,1.56773577]
[1724603391149,6.2605,159.73,159.65,1.56773577]
[1724603391323,1.56558569,159.72,159.66,1.56773577]
[1724603391525,1.56558569,159.72,159.64,1.56773577]
[1724603391727,7.82648569,159.72,159.65,1.56773577]
[1724603391951,7.82648569,159.72,159.66,1.56773577]
[1724603392144,7.82648569,159.72,159.64,1.56773577]
[1724603392445,7.82648569,159.72,159.65,1.56773577]
[1724603392653,7.82648569,159.72,159.66,1.56773577]
[1724603392951,7.82648569,159.72,159.64,1.56773577]
[1724603393152,7.82648569,159.72,159.65,1.56773577]
[1724603393325,7.82648569,159.72,159.66,1.56773577]
[1724603393525,7.82648569,159.72,159.64,1.56773577]
[1724603393836,6.2609,159.72,159.65,1.56773577]
[1724603394145,7.82658301,159.72,159.66,1.56773577]
[1724603394325,7.82658301,159.72,159.64,1.56773577]
[1724603394524,7.82658301,159.72,159.65,1.56773577]
[1724603394853,7.82658301,159.72,159.63,5.36835877]
[1724603395024,1.56568768,159.71,159.64,1.56770877]
[1724603395349,1.56568768,159.7,159.65,1.56770877]
[1724603395559,1.56568768,159.7,159.66,1.56770877]
[1724603395727,1.56568768,159.7,159.64,1.56770877]
[1724603395928,6.2609,159.72,159.65,1.56770877]
[1724603396235,1.56569249,159.71,159.63,15.01911852]
[1724603396439,1.56569249,159.71,159.64,2.97988006]
[1724603396636,1.56569249,159.71,159.65,1.56770035]
[1724603396844,1.56569249,159.71,159.66,1.56770035]
[1724603397147,1.56569249,159.71,159.65,1.56770035]
[1724603397452,1.56569249,159.71,159.66,1.56770035]
[1724603397651,1.56569249,159.71,159.65,1.56770035]
[1724603397955,14.36539656,159.71,159.66,1.56770035]
[1724603398149,14.36539656,159.71,159.64,5.36835877]
[1724603398357,14.36539656,159.71,159.65,1.56769153]
[1724603398647,14.36539656,159.71,159.66,1.56769153]
[1724603398947,9.65075975,159.69,159.62,21.4369]
[1724603399149,1.5660824,159.68,159.62,21.4369]
[1724603399447,1.56597182,159.67,159.62,21.4369]
[1724603399958,6.2626,159.68,159.62,21.4369]
[1724603400838,1.56605266,159.67,159.62,21.4369]
[1724603401237,1.56605266,159.67,159.63,1.5680815]
[1724603401434,1.56605266,159.67,159.62,21.4369]
[1724603402146,1.56605266,159.67,159.63,1.5680815]
[1724603402337,1.56605266,159.67,159.62,21.4369]
[1724603402538,1.56605266,159.67,159.63,1.5680815]
[1724603402830,6.53820407,159.71,159.62,21.4369]
[1724603402831,6.2618,159.7,159.62,21.4369]
[1724603403050,1.56585586,159.69,159.62,21.4369]
[1724603403230,56.21661561,159.69,159.63,1.56796057]
[1724603403431,56.21661561,159.69,159.62,21.4369]
[1724603403633,56.21661561,159.69,159.63,1.56800953]
[1724603403852,56.21661561,159.69,159.62,21.4369]
[1724603404056,9.65075975,159.65,159.56,21.6288]
[1724603404261,1.56644705,159.64,159.57,6.94015418]
[1724603404436,1.56644705,159.64,159.58,5.52646413]
[1724603404635,1.56644705,159.64,159.59,5.52646413]
[1724603404849,1.56644705,159.64,159.6,1.56826443]
[1724603405035,1.56644705,159.64,159.58,3.9581997]
[1724603405237,1.56644705,159.64,159.59,1.56832528]
[1724603405454,1.56644705,159.64,159.6,1.56832528]
[1724603405455,6.2642,159.64,159.6,1.56832528]
[1724603405752,1.56644237,159.63,159.58,3.9581997]
[1724603406127,1.56644237,159.63,159.59,3.13666287]
[1724603406355,6.2649,159.62,159.59,3.13666287]
[1724603406554,1.56656864,159.61,159.59,3.13666287]
[1724603406895,1.56656864,159.61,159.59,1.56833113]
[1724603407045,1.56656864,159.61,159.59,1.56833174]
[1724603407365,1.56656864,159.61,159.58,1.56833174]
[1724603407541,6.2645,159.63,159.57,3.9587016]
[1724603407868,15.91475975,159.65,159.58,1.56841345]
[1724603408034,15.91475975,159.65,159.59,1.56841345]
[1724603408232,6.264,159.64,159.58,1.56841345]
[1724603408442,6.264,159.64,159.57,3.9587016]
[1724603408646,6.264,159.64,159.58,1.56840459]
[1724603408850,6.264,159.64,159.57,3.9587016]
[1724603409057,6.264,159.64,159.56,21.6288]
[1724603409263,6.264,159.64,159.57,5.5275172]
[1724603409470,1.56644157,159.63,159.58,1.56839617]
[1724603410257,6.264,159.64,159.58,1.56839617]
[1724603410465,16.20007743,159.65,159.62,9.65075975]
[1724603410466,6.54931768,159.65,159.62,9.65075975]
[1724603410651,1.56571053,159.72,159.63,16.71729617]
[1724603410973,6.54595394,159.72,159.63,15.1489]
[1724603411337,6.54595394,159.72,159.64,11.21859919]
[1724603411550,9.65075975,159.73,159.65,1.56783944]
[1724603411879,6.54522121,159.72,159.65,1.56783944]
[1724603412043,8.11081823,159.72,159.65,1.56783944]
[1724603412243,9.65075975,159.71,159.64,1.56778256]
[1724603412446,9.65075975,159.71,159.63,15.1489]
[1724603412447,7.82775081,159.7,159.63,15.1489]
[1724603412663,6.2618,159.7,159.62,6.4799]
[1724603412979,1.56589146,159.69,159.63,1.5679437]
[1724603413468,1.56589146,159.69,159.62,6.4799]
[1724603413669,1.56589146,159.69,159.63,1.56790882]
[1724603413872,9.65075975,159.71,159.63,1.56790882]
[1724603414173,6.54522121,159.72,159.62,6.4799]
[1724603414174,6.54522121,159.72,159.64,1.56790882]
[1724603414389,6.54522121,159.72,159.65,1.56790882]
[1724603414663,6.54522121,159.72,159.66,16.71680882]
[1724603414872,6.54522121,159.72,159.66,15.1489]
[1724603416742,1.56547798,159.71,159.62,21.6288]
[1724603416945,1.56547798,159.71,159.63,5.52416906]
[1724603416946,1.56577958,159.7,159.63,5.52416906]
[1724603417163,1.56577958,159.7,159.64,1.56771516]
[1724603417371,1.56577958,159.7,159.62,21.6288]
[1724603417541,7.82787958,159.7,159.63,1.56792382]
[1724603417745,1.56577958,159.7,159.64,1.56792382]
[1724603418054,7.82747958,159.7,159.63,1.56792382]
[1724603418262,7.82747958,159.7,159.64,1.56792382]
[1724603418466,7.82747958,159.7,159.63,1.56792382]
[1724603418662,69.12392824,159.71,159.64,1.56782187]
[1724603418867,69.12392824,159.71,159.57,6.46853125]
[1724603418868,24.12392824,159.69,159.58,21.6288]
[1724603419067,24.12392824,159.69,159.59,5.52674238]
[1724603419372,24.12392824,159.69,159.6,5.52674238]
[1724603419549,24.12392824,159.69,159.61,5.52674238]
[1724603419754,6.2619,159.7,159.62,5.52674238]
[1724603419959,12.66492121,159.72,159.63,5.52674238]
[1724603420155,6.54522121,159.72,159.64,5.52674238]
[1724603420374,6.54522121,159.72,159.65,5.52674238]
[1724603420570,6.54522121,159.72,159.66,1.567997]
[1724603420874,6.54522121,159.72,159.63,3.95874538]
[1724603420875,6.54522121,159.72,159.67,1.567997]
[1724603421175,6.54522121,159.72,159.65,3.95874538]
[1724603421354,6.54522121,159.72,159.66,1.56763775]
[1724603421548,6.54522121,159.72,159.67,1.56763775]
[1724603421756,6.54522121,159.72,159.65,3.95556387]
[1724603421967,6.54522121,159.72,159.66,1.56761554]
[1724603422572,6.54522121,159.72,159.67,1.56761554]
[1724603422776,6.54522121,159.72,159.63,3.95554754]
[1724603422960,6.54522121,159.72,159.64,5.52315043]
[1724603423282,6.54522121,159.72,159.65,28.27605043]
[1724603423583,6.54522121,159.72,159.66,5.52315043]
[1724603423749,6.54522121,159.72,159.67,1.56760289]
[1724603423951,6.54522121,159.72,159.66,3.95554754]
[1724603424149,6.54522121,159.72,159.67,1.56758323]
[1724603424390,6.54522121,159.72,159.68,5.52312078]
[1724603424583,46.63832824,159.79,159.69,5.52312078]
[1724603424759,6.2587,159.78,159.7,1.56757324]
[1724603424963,6.2587,159.78,159.66,24.12392824]
[1724603425157,22.79343128,159.79,159.71,1.56722406]
[1724603425374,22.79343128,159.79,159.69,3.95244258]
[1724603425550,6.2574,159.81,159.72,1.56722406]
[1724603425770,6.258,159.8,159.71,1.56722406]
[1724603426107,6.258,159.8,159.69,3.95150796]
[1724603426272,6.258,159.8,159.7,1.56710174]
[1724603426469,6.258,159.8,159.71,1.56710174]
[1724603426682,6.258,159.8,159.72,1.56710174]
[1724603426888,6.258,159.8,159.7,1.56710174]
[1724603427197,6.258,159.8,159.71,1.56710174]